[Event "*** Titled Tuesday Blitz"]
[Site "Chess.com"]
[Date "2021.02.02"]
[Round "8"]
[White "Aikiigm"]
[Black "GameOverBro"]
[Result "1-0"]
[WhiteElo "2570"]
[BlackElo "2436"]
[TimeControl "180+1"]
[EndTime "11:30:39 PST"]
[Termination "Aikiigm won by resignation"]

1. d4 {[%clk 0:03:00.9]} 1... d6 {[%clk 0:02:59.4]} 2. Nf3 {[%clk 0:03:01]} 2...
Nf6 {[%clk 0:03:00]} 3. Bg5 {[%clk 0:03:01.1]} 3... Nbd7 {[%clk 0:03:00.3]} 4.
Nbd2 {[%clk 0:03:01.1]} 4... e5 {[%clk 0:03:00.7]} 5. e4 {[%clk 0:03:01.4]} 5...
Be7 {[%clk 0:03:00.2]} 6. Bc4 {[%clk 0:03:00.9]} 6... c6 {[%clk 0:03:00]} 7.
dxe5 {[%clk 0:03:01.3]} 7... dxe5 {[%clk 0:03:00]} 8. a4 {[%clk 0:03:01.8]} 8...
Qc7 {[%clk 0:02:59.4]} 9. c3 {[%clk 0:03:01.8]} 9... a5 {[%clk 0:02:59.5]} 10.
O-O {[%clk 0:02:58.5]} 10... O-O {[%clk 0:02:59]} 11. Re1 {[%clk 0:02:59]} 11...
Re8 {[%clk 0:02:58.1]} 12. Nf1 {[%clk 0:02:57.9]} 12... h6 {[%clk 0:02:57.8]}
13. Bh4 {[%clk 0:02:57.5]} 13... Nh5 {[%clk 0:02:56.1]} 14. Bxe7 {[%clk
0:02:56.8]} 14... Rxe7 {[%clk 0:02:57]} 15. Ng3 {[%clk 0:02:53.3]} 15... Nxg3
{[%clk 0:02:55.3]} 16. hxg3 {[%clk 0:02:52.9]} 16... Nf6 {[%clk 0:02:53.9]} 17.
Qb3 {[%clk 0:02:47.6]} 17... Bg4 {[%clk 0:02:51.9]} 18. Rad1 {[%clk 0:02:45.4]}
18... Rd8 {[%clk 0:02:34.8]} 19. Qc2 {[%clk 0:02:44.2]} 19... Bxf3 {[%clk
0:02:33]} 20. gxf3 {[%clk 0:02:43.8]} 20... Red7 {[%clk 0:02:32.3]} 21. Rxd7
{[%clk 0:02:41.5]} 21... Qxd7 {[%clk 0:02:32.4]} 22. Qb3 {[%clk 0:02:40.8]}
22... Kf8 {[%clk 0:02:23.5]} 23. Kg2 {[%clk 0:02:40.5]} 23... Qd2 {[%clk
0:02:17.3]} 24. Re2 {[%clk 0:02:39.6]} 24... Qd7 {[%clk 0:02:15.9]} 25. Qb6
{[%clk 0:02:39.2]} 25... Ra8 {[%clk 0:02:05.3]} 26. Re3 {[%clk 0:02:38.3]} 26...
Ne8 {[%clk 0:01:56.7]} 27. Rd3 {[%clk 0:02:37.5]} 27... Qe7 {[%clk 0:01:55]} 28.
Ba2 {[%clk 0:02:29.2]} 28... g6 {[%clk 0:01:47]} 29. Qe3 {[%clk 0:02:23.2]}
29... Kg7 {[%clk 0:01:41.8]} 30. Qd2 {[%clk 0:02:23]} 30... Nf6 {[%clk 0:01:41]}
31. Bc4 {[%clk 0:02:13.8]} 31... Qc7 {[%clk 0:01:38.1]} 32. Ba2 {[%clk
0:02:07.2]} 32... Re8 {[%clk 0:01:38.4]} 33. Qc2 {[%clk 0:02:02.9]} 33... Re7
{[%clk 0:01:37.5]} 34. Qb3 {[%clk 0:02:02.6]} 34... Ne8 {[%clk 0:01:27.8]} 35.
Qc4 {[%clk 0:02:02.4]} 35... Nd6 {[%clk 0:01:24]} 36. Qc5 {[%clk 0:02:02.6]}
36... Ne8 {[%clk 0:01:09.8]} 37. b4 {[%clk 0:02:02.5]} 37... b6 {[%clk
0:01:07.6]} 38. Qc4 {[%clk 0:02:02.4]} 38... Nd6 {[%clk 0:01:04.5]} 39. Qb3
{[%clk 0:02:02.5]} 39... Nb7 {[%clk 0:01:04.3]} 40. Qd1 {[%clk 0:01:58.6]} 40...
axb4 {[%clk 0:00:54.6]} 41. cxb4 {[%clk 0:01:59.5]} 41... c5 {[%clk 0:00:55.2]}
42. b5 {[%clk 0:01:36.8]} 42... Na5 {[%clk 0:00:53.2]} 43. Qc2 {[%clk 0:01:24]}
43... c4 {[%clk 0:00:47.3]} 44. Rd5 {[%clk 0:01:23.6]} 44... Re8 {[%clk
0:00:42.4]} 45. Qc3 {[%clk 0:01:23.4]} 45... f6 {[%clk 0:00:36.5]} 46. Qc2
{[%clk 0:01:08.3]} 46... c3 {[%clk 0:00:17.4]} 47. Rd3 {[%clk 0:01:06.8]} 47...
Rc8 {[%clk 0:00:17.2]} 48. Bd5 {[%clk 0:01:02.6]} 48... Qc5 {[%clk 0:00:15.7]}
49. f4 {[%clk 0:01:02.2]} 49... exf4 {[%clk 0:00:13.6]} 50. gxf4 {[%clk
0:01:02.6]} 50... Rc7 {[%clk 0:00:14]} 51. Rg3 {[%clk 0:01:02.3]} 51... f5
{[%clk 0:00:13.3]} 52. Bc6 {[%clk 0:00:47.4]} 52... Nxc6 {[%clk 0:00:12]} 53.
Rxc3 {[%clk 0:00:46.9]} 53... Qd4 {[%clk 0:00:09.5]} 54. Rxc6 {[%clk 0:00:42.8]}
54... Rf7 {[%clk 0:00:04.9]} 55. Rc4 {[%clk 0:00:40.3]} 55... Qa1 {[%clk
0:00:03.1]} 56. e5 {[%clk 0:00:39.9]} 56... h5 {[%clk 0:00:02]} 57. e6 {[%clk
0:00:39.7]} 57... h4 {[%clk 0:00:02.5]} 58. exf7 {[%clk 0:00:38.8]} 58... h3+
{[%clk 0:00:03.4]} 59. Kxh3 {[%clk 0:00:37.5]} 59... Qh1+ {[%clk 0:00:03.9]} 60.
Kg3 {[%clk 0:00:37.7]} 60... Qg1+ {[%clk 0:00:04.5]} 61. Kf3 {[%clk 0:00:38]}
61... Qh1+ {[%clk 0:00:05]} 62. Ke3 {[%clk 0:00:38.2]} 62... Qe1+ {[%clk
0:00:05.1]} 63. Kd3 {[%clk 0:00:38.5]} 63... Qf1+ {[%clk 0:00:05.2]} 64. Kc3
{[%clk 0:00:38.6]} 64... Qa1+ {[%clk 0:00:05.4]} 65. Kb3 {[%clk 0:00:38.4]}
65... Kxf7 {[%clk 0:00:04.3]} 66. Rc7+ {[%clk 0:00:38.4]} 66... Kg8 {[%clk
0:00:04.8]} 67. Qc4+ {[%clk 0:00:38.3]} 67... Kh8 {[%clk 0:00:04.5]} 68. Qc3+
{[%clk 0:00:38]} 1-0

[Event "*** Titled Tuesday Blitz"]
[Site "Chess.com"]
[Date "2021.02.02"]
[Round "8"]
[White "MariaFominykh"]
[Black "The_Machine04"]
[Result "1-0"]
[WhiteElo "2276"]
[BlackElo "2474"]
[TimeControl "180+1"]
[EndTime "11:30:41 PST"]
[Termination "MariaFominykh won on time"]

1. d4 {[%clk 0:03:00.9]} 1... d6 {[%clk 0:03:00.9]} 2. Nf3 {[%clk 0:02:58.9]}
2... Nf6 {[%clk 0:03:00.7]} 3. c4 {[%clk 0:02:57.8]} 3... g6 {[%clk 0:02:59.5]}
4. Nc3 {[%clk 0:02:56.7]} 4... Bf5 {[%clk 0:02:58.9]} 5. Nd2 {[%clk 0:02:51.1]}
5... e5 {[%clk 0:02:57.5]} 6. d5 {[%clk 0:02:45.2]} 6... e4 {[%clk 0:02:54.5]}
7. e3 {[%clk 0:02:42.6]} 7... Bg7 {[%clk 0:02:53.8]} 8. Be2 {[%clk 0:02:42.2]}
8... h5 {[%clk 0:02:52.4]} 9. Nb3 {[%clk 0:02:36.5]} 9... Nbd7 {[%clk
0:02:51.4]} 10. Nd4 {[%clk 0:02:34.5]} 10... Ne5 {[%clk 0:02:47.6]} 11. Nxf5
{[%clk 0:02:23.2]} 11... gxf5 {[%clk 0:02:48.5]} 12. Qb3 {[%clk 0:02:08.9]}
12... b6 {[%clk 0:02:47.4]} 13. Bd2 {[%clk 0:02:05.1]} 13... Nfg4 {[%clk
0:02:46.2]} 14. h3 {[%clk 0:01:52.1]} 14... Nf6 {[%clk 0:02:30]} 15. Nb5 {[%clk
0:01:49.8]} 15... Nfd7 {[%clk 0:02:25.6]} 16. Bb4 {[%clk 0:01:40.5]} 16... a5
{[%clk 0:02:22]} 17. Ba3 {[%clk 0:01:39.2]} 17... h4 {[%clk 0:02:13.7]} 18. f4
{[%clk 0:01:31.8]} 18... exf3 {[%clk 0:01:46.2]} 19. gxf3 {[%clk 0:01:31.4]}
19... Rc8 {[%clk 0:01:45.7]} 20. f4 {[%clk 0:01:23.1]} 20... Ng6 {[%clk
0:01:43]} 21. Nd4 {[%clk 0:01:17.6]} 21... Bxd4 {[%clk 0:01:37.4]} 22. exd4
{[%clk 0:01:17.5]} 22... Qe7 {[%clk 0:01:32.9]} 23. Qf3 {[%clk 0:01:08]} 23...
Qe4 {[%clk 0:01:27.7]} 24. Qxe4+ {[%clk 0:01:03.2]} 24... fxe4 {[%clk
0:01:28.6]} 25. f5 {[%clk 0:00:58.4]} 25... Nf4 {[%clk 0:01:26.8]} 26. Kd2
{[%clk 0:00:52.7]} 26... Rg8 {[%clk 0:01:21.5]} 27. Bg4 {[%clk 0:00:49]} 27...
Nf6 {[%clk 0:01:18.4]} 28. Rag1 {[%clk 0:00:37.4]} 28... Ke7 {[%clk 0:01:09.9]}
29. Ke3 {[%clk 0:00:37.2]} 29... N4h5 {[%clk 0:01:09.7]} 30. Bxh5 {[%clk
0:00:29.8]} 30... Nxh5 {[%clk 0:01:10.6]} 31. Rg4 {[%clk 0:00:27.3]} 31... Ng3
{[%clk 0:01:05.9]} 32. Re1 {[%clk 0:00:19.2]} 32... Rxg4 {[%clk 0:01:04.8]} 33.
hxg4 {[%clk 0:00:19.9]} 33... Kf6 {[%clk 0:01:01.9]} 34. Kf4 {[%clk 0:00:20.1]}
34... Rg8 {[%clk 0:01:01.1]} 35. b3 {[%clk 0:00:18.8]} 35... Kg7 {[%clk
0:00:36.5]} 36. c5 {[%clk 0:00:18]} 36... Rd8 {[%clk 0:00:29.1]} 37. cxd6 {[%clk
0:00:16.6]} 37... cxd6 {[%clk 0:00:29.2]} 38. g5 {[%clk 0:00:15.8]} 38... f6
{[%clk 0:00:28.2]} 39. g6 {[%clk 0:00:14.6]} 39... Rh8 {[%clk 0:00:15.3]} 40.
Kg4 {[%clk 0:00:14.5]} 40... Re8 {[%clk 0:00:08.3]} 41. Bxd6 {[%clk 0:00:12.4]}
41... e3 {[%clk 0:00:08.6]} 42. Bxg3 {[%clk 0:00:11.1]} 42... hxg3 {[%clk
0:00:08.2]} 43. Kxg3 {[%clk 0:00:11.1]} 43... Re4 {[%clk 0:00:07.6]} 44. Kf3
{[%clk 0:00:11.1]} 44... Rxd4 {[%clk 0:00:06.3]} 45. Rxe3 {[%clk 0:00:10.9]}
45... Rxd5 {[%clk 0:00:06.9]} 46. Re7+ {[%clk 0:00:11.1]} 46... Kh6 {[%clk
0:00:06.4]} 47. Ke4 {[%clk 0:00:11]} 47... Rd1 {[%clk 0:00:04]} 48. Rh7+ {[%clk
0:00:11.2]} 48... Kg5 {[%clk 0:00:03.7]} 49. g7 {[%clk 0:00:11.7]} 49... Re1+
{[%clk 0:00:04]} 50. Kf3 {[%clk 0:00:09.6]} 50... Re8 {[%clk 0:00:02.9]} 51. Rh8
{[%clk 0:00:08.9]} 1-0

[Event "*** Titled Tuesday Blitz"]
[Site "Chess.com"]
[Date "2021.02.02"]
[Round "8"]
[White "MikeSailer"]
[Black "profofchess"]
[Result "1/2-1/2"]
[WhiteElo "2202"]
[BlackElo "2392"]
[TimeControl "180+1"]
[EndTime "11:30:42 PST"]
[Termination "Game drawn by repetition"]

1. d4 {[%clk 0:02:55.1]} 1... Nf6 {[%clk 0:02:59.8]} 2. Nf3 {[%clk 0:02:54.3]}
2... e6 {[%clk 0:02:59.8]} 3. Bg5 {[%clk 0:02:54.4]} 3... Be7 {[%clk 0:02:57.1]}
4. e3 {[%clk 0:02:54.8]} 4... b6 {[%clk 0:02:54.3]} 5. Bd3 {[%clk 0:02:54]} 5...
c5 {[%clk 0:02:53.8]} 6. c3 {[%clk 0:02:53.5]} 6... Bb7 {[%clk 0:02:53.8]} 7.
Nbd2 {[%clk 0:02:53.5]} 7... cxd4 {[%clk 0:02:54]} 8. exd4 {[%clk 0:02:53]} 8...
O-O {[%clk 0:02:54]} 9. O-O {[%clk 0:02:52.7]} 9... d6 {[%clk 0:02:52.5]} 10.
Re1 {[%clk 0:02:51.7]} 10... Nbd7 {[%clk 0:02:52.4]} 11. a4 {[%clk 0:02:51.1]}
11... a6 {[%clk 0:02:52.1]} 12. Qe2 {[%clk 0:02:38.7]} 12... Re8 {[%clk
0:02:49.2]} 13. Nf1 {[%clk 0:02:29.6]} 13... Nf8 {[%clk 0:02:47.8]} 14. Ng3
{[%clk 0:02:26]} 14... Ng6 {[%clk 0:02:40.9]} 15. h4 {[%clk 0:02:17.5]} 15...
Nd5 {[%clk 0:02:37.3]} 16. Bxe7 {[%clk 0:02:09.7]} 16... Qxe7 {[%clk 0:02:38.2]}
17. Qc2 {[%clk 0:02:00.8]} 17... Nxh4 {[%clk 0:01:41.1]} 18. Bxh7+ {[%clk
0:01:57.8]} 18... Kh8 {[%clk 0:01:41.4]} 19. Nxh4 {[%clk 0:01:54.8]} 19... Qxh4
{[%clk 0:01:42.3]} 20. Be4 {[%clk 0:01:51.8]} 20... Rac8 {[%clk 0:01:18.7]} 21.
Bf3 {[%clk 0:01:46.2]} 21... Rc7 {[%clk 0:01:08.1]} 22. Re4 {[%clk 0:01:43]}
22... Qe7 {[%clk 0:01:02.5]} 23. Rg4 {[%clk 0:01:36.6]} 23... g6 {[%clk
0:00:53.9]} 24. Qd2 {[%clk 0:01:20.3]} 24... Kh7 {[%clk 0:00:43.5]} 25. Ne4
{[%clk 0:01:16.6]} 25... Rh8 {[%clk 0:00:30.8]} 26. Ng5+ {[%clk 0:01:12.8]}
26... Kg7 {[%clk 0:00:29.6]} 27. Re1 {[%clk 0:01:05.2]} 27... Nf6 {[%clk
0:00:29.5]} 28. Rg3 {[%clk 0:01:00]} 28... Bxf3 {[%clk 0:00:28.5]} 29. Rxf3
{[%clk 0:00:57.8]} 29... Rh5 {[%clk 0:00:17.6]} 30. Qf4 {[%clk 0:00:56.2]} 30...
Nd5 {[%clk 0:00:12.2]} 31. Qxf7+ {[%clk 0:00:47.4]} 31... Qxf7 {[%clk
0:00:12.3]} 32. Nxf7 {[%clk 0:00:46.6]} 32... Rxf7 {[%clk 0:00:12.2]} 33. Rxe6
{[%clk 0:00:43.5]} 33... Rxf3 {[%clk 0:00:10.4]} 34. gxf3 {[%clk 0:00:43.8]}
34... Kf7 {[%clk 0:00:04.1]} 35. Rxd6 {[%clk 0:00:43.6]} 35... Rg5+ {[%clk
0:00:04.2]} 36. Kf1 {[%clk 0:00:42.3]} 36... Ke7 {[%clk 0:00:04.7]} 37. Rc6
{[%clk 0:00:38.6]} 37... Kd7 {[%clk 0:00:05.1]} 38. Rc4 {[%clk 0:00:37.4]} 38...
Nf4 {[%clk 0:00:05.3]} 39. b4 {[%clk 0:00:32.7]} 39... Rh5 {[%clk 0:00:05.5]}
40. Ke1 {[%clk 0:00:28]} 40... b5 {[%clk 0:00:05.8]} 41. axb5 {[%clk 0:00:26]}
41... axb5 {[%clk 0:00:06.7]} 42. Rc5 {[%clk 0:00:22.3]} 42... Rxc5 {[%clk
0:00:06.3]} 43. dxc5 {[%clk 0:00:18.1]} 43... Kc6 {[%clk 0:00:06.5]} 44. Kd2
{[%clk 0:00:18.1]} 44... Kd5 {[%clk 0:00:06.7]} 45. Ke3 {[%clk 0:00:18.8]} 45...
Ne6 {[%clk 0:00:06.5]} 46. Kd3 {[%clk 0:00:16.1]} 46... g5 {[%clk 0:00:04.8]}
47. c6 {[%clk 0:00:12.7]} 47... Kxc6 {[%clk 0:00:04.7]} 48. Ke4 {[%clk
0:00:13.4]} 48... Kd6 {[%clk 0:00:04.3]} 49. Kf5 {[%clk 0:00:12.1]} 49... Ke7
{[%clk 0:00:04.1]} 50. Ke5 {[%clk 0:00:12.1]} 50... Nc7 {[%clk 0:00:04.3]} 51.
Kd4 {[%clk 0:00:11.5]} 51... Kd6 {[%clk 0:00:04.2]} 52. c4 {[%clk 0:00:11.6]}
52... bxc4 {[%clk 0:00:04]} 53. Kxc4 {[%clk 0:00:11.9]} 53... Ke5 {[%clk
0:00:03.8]} 54. Kd3 {[%clk 0:00:11.8]} 54... Kf4 {[%clk 0:00:03.8]} 55. Ke2
{[%clk 0:00:11.6]} 55... Nb5 {[%clk 0:00:04.4]} 56. Kf1 {[%clk 0:00:09.1]} 56...
Kxf3 {[%clk 0:00:04.6]} 57. Kg1 {[%clk 0:00:09.1]} 57... Nd4 {[%clk 0:00:04.9]}
58. Kf1 {[%clk 0:00:07.9]} 58... Nb5 {[%clk 0:00:04.8]} 59. Kg1 {[%clk
0:00:08.1]} 59... Nc7 {[%clk 0:00:05.5]} 60. Kf1 {[%clk 0:00:08]} 60... Nb5
{[%clk 0:00:05.6]} 1/2-1/2

[Event "*** Titled Tuesday Blitz"]
[Site "Chess.com"]
[Date "2021.02.02"]
[Round "8"]
[White "anantone"]
[Black "Shahaliyev"]
[Result "1-0"]
[WhiteElo "2568"]
[BlackElo "2720"]
[TimeControl "180+1"]
[EndTime "11:30:43 PST"]
[Termination "anantone won by resignation"]

1. c4 {[%clk 0:03:00.9]} 1... e5 {[%clk 0:02:59.8]} 2. g3 {[%clk 0:03:01]} 2...
Nf6 {[%clk 0:02:57.7]} 3. Bg2 {[%clk 0:03:00.2]} 3... c6 {[%clk 0:02:57.5]} 4.
Nc3 {[%clk 0:02:58.6]} 4... Be7 {[%clk 0:02:53.7]} 5. Nf3 {[%clk 0:02:56.8]}
5... d6 {[%clk 0:02:52.1]} 6. O-O {[%clk 0:02:56.1]} 6... O-O {[%clk 0:02:52.1]}
7. d3 {[%clk 0:02:55.5]} 7... Nbd7 {[%clk 0:02:50.1]} 8. Rb1 {[%clk 0:02:55.7]}
8... a5 {[%clk 0:02:49.5]} 9. a3 {[%clk 0:02:55.5]} 9... d5 {[%clk 0:02:44.5]}
10. cxd5 {[%clk 0:02:45.6]} 10... cxd5 {[%clk 0:02:45.4]} 11. d4 {[%clk
0:02:43.6]} 11... e4 {[%clk 0:02:44.4]} 12. Ne5 {[%clk 0:02:41.8]} 12... Nb6
{[%clk 0:02:44.9]} 13. Nb5 {[%clk 0:02:27.2]} 13... a4 {[%clk 0:02:39.5]} 14.
Bg5 {[%clk 0:02:22.6]} 14... Bd7 {[%clk 0:02:36.2]} 15. Nc3 {[%clk 0:02:17]}
15... h6 {[%clk 0:02:25.7]} 16. Bxf6 {[%clk 0:02:16]} 16... Bxf6 {[%clk
0:02:26.6]} 17. Nxd7 {[%clk 0:02:15.6]} 17... Qxd7 {[%clk 0:02:27]} 18. e3
{[%clk 0:02:13.9]} 18... Nc4 {[%clk 0:02:23.9]} 19. h4 {[%clk 0:02:12.6]} 19...
b5 {[%clk 0:02:23.7]} 20. Kh2 {[%clk 0:02:10.8]} 20... Rfb8 {[%clk 0:02:23.3]}
21. Bh3 {[%clk 0:02:10.6]} 21... Qd6 {[%clk 0:02:22.5]} 22. Qh5 {[%clk 0:01:56]}
22... Nd2 {[%clk 0:02:12.6]} 23. Qxd5 {[%clk 0:01:55.8]} 23... Nxf1+ {[%clk
0:02:11.9]} 24. Rxf1 {[%clk 0:01:44.3]} 24... Qxd5 {[%clk 0:01:52.9]} 25. Nxd5
{[%clk 0:01:45.2]} 25... Bd8 {[%clk 0:01:46.6]} 26. Bf5 {[%clk 0:01:35.8]} 26...
Ra6 {[%clk 0:01:33.6]} 27. Rc1 {[%clk 0:01:27.6]} 27... Ba5 {[%clk 0:01:18]} 28.
Bxe4 {[%clk 0:01:16]} 28... Re6 {[%clk 0:01:14.4]} 29. Bd3 {[%clk 0:00:55.9]}
29... Rd6 {[%clk 0:01:08.2]} 30. Nb4 {[%clk 0:00:54.5]} 30... Bxb4 {[%clk
0:00:56.1]} 31. axb4 {[%clk 0:00:55.4]} 31... Ra6 {[%clk 0:00:55.6]} 32. Rc5
{[%clk 0:00:54.2]} 32... a3 {[%clk 0:00:53.9]} 33. bxa3 {[%clk 0:00:52.8]} 33...
Rxa3 {[%clk 0:00:54.8]} 34. Bxb5 {[%clk 0:00:51.7]} 34... Rb3 {[%clk 0:00:54]}
35. Bc4 {[%clk 0:00:44.8]} 35... R3xb4 {[%clk 0:00:54.4]} 36. Rc7 {[%clk
0:00:45]} 36... Rf8 {[%clk 0:00:49.3]} 37. Kg2 {[%clk 0:00:44.1]} 37... g6
{[%clk 0:00:49.2]} 38. Kf3 {[%clk 0:00:42.3]} 38... Kg7 {[%clk 0:00:49.5]} 39.
g4 {[%clk 0:00:40.2]} 39... Kf6 {[%clk 0:00:44]} 40. Kf4 {[%clk 0:00:39.5]}
40... g5+ {[%clk 0:00:43.8]} 41. hxg5+ {[%clk 0:00:39.3]} 41... hxg5+ {[%clk
0:00:44.7]} 42. Kf3 {[%clk 0:00:37.4]} 42... Kg6 {[%clk 0:00:45.4]} 43. e4
{[%clk 0:00:28.5]} 43... Ra4 {[%clk 0:00:41.5]} 44. e5 {[%clk 0:00:25.6]} 44...
Ra3+ {[%clk 0:00:36.1]} 45. Ke4 {[%clk 0:00:25.7]} 45... Ra1 {[%clk 0:00:35.2]}
46. Bd3 {[%clk 0:00:19.6]} 46... Re1+ {[%clk 0:00:31.3]} 47. Kd5+ {[%clk
0:00:19.6]} 47... Kh6 {[%clk 0:00:31.7]} 48. Rd7 {[%clk 0:00:19.2]} 48... Rg1
{[%clk 0:00:29.9]} 49. f3 {[%clk 0:00:19.3]} 49... Rd1 {[%clk 0:00:23.9]} 50.
Be4 {[%clk 0:00:18.9]} 50... Rb8 {[%clk 0:00:24.4]} 51. Rxf7 {[%clk 0:00:17.8]}
51... Rd8+ {[%clk 0:00:24.3]} 52. Ke6 {[%clk 0:00:16.1]} 52... Rh8 {[%clk
0:00:20.6]} 53. d5 {[%clk 0:00:15.6]} 53... Re8+ {[%clk 0:00:20.3]} 54. Kd7
{[%clk 0:00:14.8]} 54... Rxd5+ {[%clk 0:00:18.1]} 55. Bxd5 {[%clk 0:00:10.6]}
55... Rxe5 {[%clk 0:00:18.7]} 56. Rf6+ {[%clk 0:00:09]} 56... Kg7 {[%clk
0:00:18.5]} 57. Rd6 {[%clk 0:00:09.4]} 57... Re3 {[%clk 0:00:18.3]} 58. Be4
{[%clk 0:00:08.9]} 1-0

[Event "*** Titled Tuesday Blitz"]
[Site "Chess.com"]
[Date "2021.02.02"]
[Round "8"]
[White "Moon_stone123"]
[Black "Mambastik-Fantastic"]
[Result "1-0"]
[WhiteElo "2431"]
[BlackElo "2276"]
[TimeControl "180+1"]
[EndTime "11:30:44 PST"]
[Termination "Moon_stone123 won by resignation"]

1. Nf3 {[%clk 0:02:25.7]} 1... d5 {[%clk 0:02:58.8]} 2. g3 {[%clk 0:02:25.4]}
2... Bg4 {[%clk 0:02:57.8]} 3. Bg2 {[%clk 0:02:25.6]} 3... Nd7 {[%clk
0:02:57.9]} 4. O-O {[%clk 0:02:23.1]} 4... Ngf6 {[%clk 0:02:58]} 5. c4 {[%clk
0:02:21.4]} 5... e6 {[%clk 0:02:58]} 6. b3 {[%clk 0:02:19.5]} 6... c6 {[%clk
0:02:58.1]} 7. Bb2 {[%clk 0:02:18.2]} 7... Be7 {[%clk 0:02:58.6]} 8. d3 {[%clk
0:02:18.1]} 8... O-O {[%clk 0:02:58.8]} 9. Nbd2 {[%clk 0:02:18.5]} 9... a5
{[%clk 0:02:58.6]} 10. a3 {[%clk 0:02:18.4]} 10... Qb8 {[%clk 0:02:58.6]} 11.
Qc2 {[%clk 0:02:17.3]} 11... Rd8 {[%clk 0:02:54.9]} 12. Bc3 {[%clk 0:02:15.5]}
12... Bf8 {[%clk 0:02:52.7]} 13. Qb2 {[%clk 0:02:14.4]} 13... a4 {[%clk
0:02:51]} 14. b4 {[%clk 0:02:13.9]} 14... Bh5 {[%clk 0:02:39.6]} 15. Rab1 {[%clk
0:02:12.4]} 15... Qa7 {[%clk 0:02:35.5]} 16. Bd4 {[%clk 0:02:06.6]} 16... c5
{[%clk 0:02:25]} 17. bxc5 {[%clk 0:02:03.5]} 17... Bxc5 {[%clk 0:02:25]} 18. Bc3
{[%clk 0:01:45.8]} 18... dxc4 {[%clk 0:02:11.1]} 19. Nxc4 {[%clk 0:01:46.7]}
19... Rab8 {[%clk 0:01:49.3]} 20. Nce5 {[%clk 0:01:40.7]} 20... Nf8 {[%clk
0:01:26.3]} 21. d4 {[%clk 0:01:33.7]} 21... Bd6 {[%clk 0:01:18.9]} 22. Rfe1
{[%clk 0:01:33.2]} 22... Nd5 {[%clk 0:01:14.1]} 23. Bd2 {[%clk 0:01:31.7]} 23...
Bg6 {[%clk 0:01:11]} 24. e4 {[%clk 0:01:27.5]} 24... Ne7 {[%clk 0:01:04.2]} 25.
Nc4 {[%clk 0:01:20.9]} 25... Bc7 {[%clk 0:01:00.7]} 26. Rbd1 {[%clk 0:01:19.5]}
26... b5 {[%clk 0:01:00.7]} 27. Nce5 {[%clk 0:01:17.2]} 27... Bb6 {[%clk
0:01:00]} 28. Bb4 {[%clk 0:01:13.9]} 28... Rdc8 {[%clk 0:00:48.3]} 29. Rc1
{[%clk 0:01:10.3]} 29... Rxc1 {[%clk 0:00:47.2]} 30. Rxc1 {[%clk 0:01:11.2]}
30... Bxe4 {[%clk 0:00:46.7]} 31. Ng5 {[%clk 0:00:57.3]} 31... Bxg2 {[%clk
0:00:44.2]} 32. Kxg2 {[%clk 0:00:56.3]} 32... Bxd4 {[%clk 0:00:43.2]} 33. Qe2
{[%clk 0:00:53.6]} 33... Qb7+ {[%clk 0:00:41.1]} 34. Nef3 {[%clk 0:00:38.9]}
34... Bf6 {[%clk 0:00:34.2]} 35. Ne4 {[%clk 0:00:39.1]} 35... Nd5 {[%clk
0:00:31.9]} 36. Bc5 {[%clk 0:00:34.7]} 36... Nd7 {[%clk 0:00:27.5]} 37. Bd6
{[%clk 0:00:33.7]} 37... Rc8 {[%clk 0:00:25.9]} 38. Rxc8+ {[%clk 0:00:30.3]}
38... Qxc8 {[%clk 0:00:26.1]} 39. Qxb5 {[%clk 0:00:31.2]} 39... h6 {[%clk
0:00:23.7]} 40. Qxa4 {[%clk 0:00:25.2]} 40... Kh7 {[%clk 0:00:21]} 41. Qb3
{[%clk 0:00:22.7]} 41... Qc6 {[%clk 0:00:19.4]} 42. Nxf6+ {[%clk 0:00:19.7]}
42... N7xf6 {[%clk 0:00:18.6]} 43. Bb4 {[%clk 0:00:19.9]} 43... g5 {[%clk
0:00:17.2]} 44. Qb1+ {[%clk 0:00:18.3]} 44... Kg8 {[%clk 0:00:15.6]} 45. h3
{[%clk 0:00:18.8]} 45... h5 {[%clk 0:00:15]} 46. Bd2 {[%clk 0:00:14.7]} 46... g4
{[%clk 0:00:14.7]} 47. hxg4 {[%clk 0:00:15.2]} 47... hxg4 {[%clk 0:00:14.9]} 48.
Ne5 {[%clk 0:00:15.5]} 48... Qa8 {[%clk 0:00:12.2]} 49. Kg1 {[%clk 0:00:15.4]}
49... Ne4 {[%clk 0:00:09.9]} 50. Qxe4 {[%clk 0:00:14]} 50... Qxa3 {[%clk
0:00:08.2]} 51. Qxg4+ {[%clk 0:00:13.7]} 51... Kf8 {[%clk 0:00:08.3]} 52. Bh6+
{[%clk 0:00:12.8]} 52... Ke8 {[%clk 0:00:06.5]} 53. Qg8+ {[%clk 0:00:12.3]}
53... Ke7 {[%clk 0:00:06.9]} 54. Qf8+ {[%clk 0:00:12.1]} 54... Kf6 {[%clk
0:00:06.3]} 55. Qxa3 {[%clk 0:00:13]} 1-0